[Event "Titled Tuesday Blitz August 08 Early 2023"]
[White "Nozdrachev, Leonid"]
[Black "Rasulov, Vugar"]
[WhiteFideId "24113433"]
[BlackFideId "13402390"]
[WhiteElo "2568"]
[BlackElo "2819"]
[Result "0-1"]
[Round "2"]
[TimeControl "180+1"]
[Date "2023.08.08"]
[WhiteClock "0:00:22"]
[BlackClock "0:01:58"]
[Board "59"]

1. e4 {[%clk 0:02:59]}  c6 {[%clk 0:03:00]} 2. Nc3 {[%clk 0:02:57]}  d5 {[%clk 0:03:00]} 3. Nf3 {[%clk 0:02:57]}  dxe4 {[%clk 0:03:00]} 4. Nxe4 {[%clk 0:02:58]}  Nf6 {[%clk 0:03:00]} 5. Qe2 {[%clk 0:02:57]}  Na6 {[%clk 0:03:00]} 6. d4 {[%clk 0:02:54]}  Nxe4 {[%clk 0:02:53]} 7. Qxe4 {[%clk 0:02:53]}  Qd5 {[%clk 0:02:54]} 8. Qxd5 {[%clk 0:02:47]}  cxd5 {[%clk 0:02:55]} 9. Bb5+ {[%clk 0:02:46]}  Bd7 {[%clk 0:02:55]} 10. Bxd7+ {[%clk 0:02:40]}  Kxd7 {[%clk 0:02:56]} 11. Ne5+ {[%clk 0:02:40]}  Ke8 {[%clk 0:02:55]} 12. Be3 {[%clk 0:02:38]}  e6 {[%clk 0:02:56]} 13. c3 {[%clk 0:02:32]}  Bd6 {[%clk 0:02:54]} 14. Nd3 {[%clk 0:02:30]}  Kd7 {[%clk 0:02:52]} 15. Bf4 {[%clk 0:02:29]}  f6 {[%clk 0:02:52]} 16. Bxd6 {[%clk 0:02:27]}  Kxd6 {[%clk 0:02:53]} 17. Kd2 {[%clk 0:02:27]}  h5 {[%clk 0:02:48]} 18. Rae1 {[%clk 0:02:21]}  h4 {[%clk 0:02:48]} 19. h3 {[%clk 0:02:19]}  b6 {[%clk 0:02:48]} 20. Re2 {[%clk 0:02:12]}  Nc7 {[%clk 0:02:48]} 21. Rhe1 {[%clk 0:02:09]}  a5 {[%clk 0:02:49]} 22. Nf4 {[%clk 0:02:05]}  Rae8 {[%clk 0:02:49]} 23. b3 {[%clk 0:01:55]}  g5 {[%clk 0:02:48]} 24. Nd3 {[%clk 0:01:53]}  a4 {[%clk 0:02:42]} 25. c4 {[%clk 0:01:51]}  axb3 {[%clk 0:02:41]} 26. axb3 {[%clk 0:01:52]}  Ra8 {[%clk 0:02:37]} 27. c5+ {[%clk 0:01:47]}  bxc5 {[%clk 0:02:36]} 28. dxc5+ {[%clk 0:01:44]}  Kd7 {[%clk 0:02:33]} 29. Kc3 {[%clk 0:01:38]}  e5 {[%clk 0:02:32]} 30. Kb2 {[%clk 0:01:17]}  d4 {[%clk 0:02:15]} 31. b4 {[%clk 0:00:49]}  Kc6 {[%clk 0:02:14]} 32. Kb3 {[%clk 0:00:47]}  Nb5 {[%clk 0:02:02]} 33. Nxe5+ {[%clk 0:00:39]}  fxe5 {[%clk 0:02:02]} 34. Rxe5 {[%clk 0:00:40]}  Ra3+ {[%clk 0:02:00]} 35. Kb2 {[%clk 0:00:40]}  Rha8 {[%clk 0:01:58]} 36. Rxg5 {[%clk 0:00:22]}  Ra2+ {[%clk 0:01:58]} 0-1


[Site "https://www.chess.com"]

[Event "Titled Tuesday Blitz August 08 Early 2023"]
[White "Veiga, Jose Francisco R P Neves"]
[Black "Atakhan, Abtin"]
[WhiteFideId "1930087"]
[BlackFideId "22502203"]
[WhiteElo "2565"]
[BlackElo "2817"]
[Result "0-1"]
[Round "2"]
[TimeControl "180+1"]
[Date "2023.08.08"]
[WhiteClock "0:01:15"]
[BlackClock "0:01:29"]
[Board "61"]

1. e4 {[%clk 0:03:00]}  c5 {[%clk 0:02:59]} 2. Nf3 {[%clk 0:03:00]}  d6 {[%clk 0:03:00]} 3. Bb5+ {[%clk 0:02:58]}  Nd7 {[%clk 0:03:00]} 4. O-O {[%clk 0:02:58]}  a6 {[%clk 0:03:00]} 5. Bd3 {[%clk 0:02:58]}  Ngf6 {[%clk 0:03:00]} 6. Re1 {[%clk 0:02:57]}  e6 {[%clk 0:03:00]} 7. c3 {[%clk 0:02:57]}  b5 {[%clk 0:03:00]} 8. a4 {[%clk 0:02:55]}  Bb7 {[%clk 0:03:00]} 9. Na3 {[%clk 0:02:49]}  c4 {[%clk 0:02:57]} 10. Bc2 {[%clk 0:02:49]}  Bc6 {[%clk 0:02:39]} 11. Nd4 {[%clk 0:02:34]}  Qb6 {[%clk 0:02:38]} 12. Nxc6 {[%clk 0:02:13]}  Qxc6 {[%clk 0:02:37]} 13. d4 {[%clk 0:02:12]}  d5 {[%clk 0:02:27]} 14. exd5 {[%clk 0:02:05]}  Nxd5 {[%clk 0:02:28]} 15. Bg5 {[%clk 0:02:00]}  Be7 {[%clk 0:02:19]} 16. Bxe7 {[%clk 0:01:58]}  Kxe7 {[%clk 0:02:20]} 17. Qg4 {[%clk 0:01:53]}  N7f6 {[%clk 0:02:20]} 18. Qg3 {[%clk 0:01:50]}  Rhb8 {[%clk 0:02:08]} 19. Qxg7 {[%clk 0:01:30]}  Rg8 {[%clk 0:01:57]} 20. Qh6 {[%clk 0:01:30]}  Rxg2+ {[%clk 0:01:53]} 21. Kxg2 {[%clk 0:01:22]}  Ne3+ {[%clk 0:01:53]} 22. Kg3 {[%clk 0:01:15]}  Qg2+ {[%clk 0:01:50]} 23. Kf4 {[%clk 0:01:16]}  Nfd5+ {[%clk 0:01:31]} 24. Ke5 {[%clk 0:01:15]}  Ng4# {[%clk 0:01:29]} 0-1


[Site "https://www.chess.com"]

[Event "Titled Tuesday Blitz August 08 Early 2023"]
[White "Klukin, Kirill"]
[Black "Ingebretsen, Jens E"]
[WhiteFideId "24199273"]
[BlackFideId "1522965"]
[WhiteElo "2812"]
[BlackElo "2561"]
[Result "0-1"]
[Round "2"]
[TimeControl "180+1"]
[Date "2023.08.08"]
[WhiteClock "0:00:07"]
[BlackClock "0:00:32"]
[Board "64"]

1. d4 {[%clk 0:03:00]}  d5 {[%clk 0:02:59]} 2. c4 {[%clk 0:02:58]}  e6 {[%clk 0:03:00]} 3. Nc3 {[%clk 0:02:57]}  Nf6 {[%clk 0:03:00]} 4. Nf3 {[%clk 0:02:57]}  c5 {[%clk 0:03:00]} 5. cxd5 {[%clk 0:02:58]}  Nxd5 {[%clk 0:03:01]} 6. e4 {[%clk 0:02:57]}  Nxc3 {[%clk 0:03:01]} 7. bxc3 {[%clk 0:02:58]}  cxd4 {[%clk 0:03:02]} 8. cxd4 {[%clk 0:02:59]}  Bb4+ {[%clk 0:03:02]} 9. Bd2 {[%clk 0:03:00]}  Bxd2+ {[%clk 0:03:03]} 10. Qxd2 {[%clk 0:03:01]}  O-O {[%clk 0:03:03]} 11. Bc4 {[%clk 0:03:01]}  Nd7 {[%clk 0:03:02]} 12. O-O {[%clk 0:03:01]}  b6 {[%clk 0:03:03]} 13. Rfe1 {[%clk 0:02:58]}  Bb7 {[%clk 0:03:03]} 14. Rad1 {[%clk 0:02:39]}  Rc8 {[%clk 0:03:02]} 15. Bd3 {[%clk 0:02:40]}  Nf6 {[%clk 0:02:54]} 16. Qf4 {[%clk 0:02:38]}  Nh5 {[%clk 0:02:33]} 17. Qg4 {[%clk 0:02:25]}  Nf6 {[%clk 0:02:34]} 18. Qh4 {[%clk 0:02:25]}  h6 {[%clk 0:02:25]} 19. d5 {[%clk 0:02:08]}  exd5 {[%clk 0:02:21]} 20. e5 {[%clk 0:02:08]}  Ne4 {[%clk 0:02:21]} 21. Qf4 {[%clk 0:01:48]}  Qe7 {[%clk 0:02:19]} 22. h4 {[%clk 0:01:16]}  Rfe8 {[%clk 0:02:14]} 23. Nd4 {[%clk 0:01:09]}  Qxe5 {[%clk 0:02:02]} 24. Qxe5 {[%clk 0:00:43]}  Rxe5 {[%clk 0:02:03]} 25. f3 {[%clk 0:00:33]}  Nc3 {[%clk 0:02:03]} 26. Rxe5 {[%clk 0:00:31]}  Nxd1 {[%clk 0:02:03]} 27. Re7 {[%clk 0:00:32]}  Rb8 {[%clk 0:01:38]} 28. Nf5 {[%clk 0:00:30]}  Kf8 {[%clk 0:01:35]} 29. Rc7 {[%clk 0:00:29]}  Bc8 {[%clk 0:01:30]} 30. Nd6 {[%clk 0:00:28]}  Be6 {[%clk 0:01:30]} 31. Rxa7 {[%clk 0:00:28]}  Nb2 {[%clk 0:01:29]} 32. Bb5 {[%clk 0:00:28]}  Nc4 {[%clk 0:01:27]} 33. Nxc4 {[%clk 0:00:28]}  dxc4 {[%clk 0:01:28]} 34. Rc7 {[%clk 0:00:29]}  Ra8 {[%clk 0:01:22]} 35. a4 {[%clk 0:00:28]}  Rc8 {[%clk 0:00:59]} 36. Rxc8+ {[%clk 0:00:28]}  Bxc8 {[%clk 0:01:00]} 37. Bxc4 {[%clk 0:00:29]}  Bd7 {[%clk 0:01:00]} 38. Bb3 {[%clk 0:00:27]}  Ke7 {[%clk 0:01:01]} 39. Kf2 {[%clk 0:00:28]}  Kd6 {[%clk 0:00:59]} 40. Ke3 {[%clk 0:00:27]}  Kc5 {[%clk 0:01:00]} 41. Bxf7 {[%clk 0:00:26]}  Bxa4 {[%clk 0:01:00]} 42. g4 {[%clk 0:00:26]}  b5 {[%clk 0:00:55]} 43. f4 {[%clk 0:00:25]}  b4 {[%clk 0:00:51]} 44. Kd3 {[%clk 0:00:12]}  Bb5+ {[%clk 0:00:49]} 45. Kc2 {[%clk 0:00:12]}  Bc4 {[%clk 0:00:47]} 46. Be8 {[%clk 0:00:04]}  Kd4 {[%clk 0:00:47]} 47. f5 {[%clk 0:00:03]}  Ke5 {[%clk 0:00:46]} 48. Bd7 {[%clk 0:00:04]}  Kf4 {[%clk 0:00:45]} 49. Kd2 {[%clk 0:00:04]}  Kxg4 {[%clk 0:00:43]} 50. f6+ {[%clk 0:00:05]}  Kxh4 {[%clk 0:00:43]} 51. fxg7 {[%clk 0:00:05]}  h5 {[%clk 0:00:40]} 52. Bb5 {[%clk 0:00:05]}  Bg8 {[%clk 0:00:38]} 53. Kc2 {[%clk 0:00:05]}  Kg5 {[%clk 0:00:36]} 54. Ba4 {[%clk 0:00:05]}  Kf6 {[%clk 0:00:33]} 55. Bd7 {[%clk 0:00:01]}  Kxg7 {[%clk 0:00:32]} 56. Kd3 {[%clk 0:00:02]}  Kf6 {[%clk 0:00:32]} 57. Kd4 {[%clk 0:00:03]}  Kg5 {[%clk 0:00:32]} 58. Bh3 {[%clk 0:00:04]}  Kh4 {[%clk 0:00:32]} 59. Bf1 {[%clk 0:00:04]}  Kg3 {[%clk 0:00:32]} 60. Kc5 {[%clk 0:00:05]}  b3 {[%clk 0:00:33]} 61. Bd3 {[%clk 0:00:05]}  h4 {[%clk 0:00:32]} 62. Kb4 {[%clk 0:00:06]}  h3 {[%clk 0:00:31]} 63. Kc3 {[%clk 0:00:07]}  h2 {[%clk 0:00:31]} 64. Be4 {[%clk 0:00:08]}  Kf2 {[%clk 0:00:31]} 65. Kb2 {[%clk 0:00:07]}  Kg1 {[%clk 0:00:32]} 0-1


[Site "https://www.chess.com"]

[Event "Titled Tuesday Blitz August 08 Early 2023"]
[White "Santos Flores, Alberto"]
[Black "Christiansen, Johan-Sebastian"]
[WhiteFideId "3601234"]
[BlackFideId "1512668"]
[WhiteElo "2557"]
[BlackElo "2806"]
[Result "0-1"]
[Round "2"]
[TimeControl "180+1"]
[Date "2023.08.08"]
[WhiteClock "0:00:01"]
[BlackClock "0:00:09"]
[Board "68"]

1. e4 {[%clk 0:03:00]}  e5 {[%clk 0:02:56]} 2. Nf3 {[%clk 0:03:00]}  Nc6 {[%clk 0:02:55]} 3. Bb5 {[%clk 0:02:57]}  f5 {[%clk 0:02:52]} 4. d3 {[%clk 0:02:56]}  fxe4 {[%clk 0:02:46]} 5. dxe4 {[%clk 0:02:55]}  Nf6 {[%clk 0:02:47]} 6. Nc3 {[%clk 0:02:53]}  Bb4 {[%clk 0:02:47]} 7. O-O {[%clk 0:02:47]}  Bxc3 {[%clk 0:02:41]} 8. bxc3 {[%clk 0:02:47]}  d6 {[%clk 0:02:42]} 9. Re1 {[%clk 0:02:40]}  O-O {[%clk 0:02:42]} 10. h3 {[%clk 0:02:31]}  Ne7 {[%clk 0:02:42]} 11. Bc4+ {[%clk 0:02:28]}  Kh8 {[%clk 0:02:42]} 12. Ng5 {[%clk 0:02:27]}  Qe8 {[%clk 0:02:42]} 13. Ne6 {[%clk 0:02:25]}  Bxe6 {[%clk 0:02:43]} 14. Bxe6 {[%clk 0:02:26]}  Ng6 {[%clk 0:02:42]} 15. Bb3 {[%clk 0:02:20]}  Nh4 {[%clk 0:02:36]} 16. g3 {[%clk 0:02:15]}  Qg6 {[%clk 0:02:28]} 17. Qd3 {[%clk 0:01:56]}  Nh5 {[%clk 0:02:13]} 18. Re3 {[%clk 0:01:05]}  Nf4 {[%clk 0:02:11]} 19. Qf1 {[%clk 0:01:01]}  Nfg2 {[%clk 0:01:57]} 20. Rd3 {[%clk 0:00:54]}  Nf4 {[%clk 0:01:47]} 21. Re3 {[%clk 0:00:46]}  Nhg2 {[%clk 0:00:57]} 22. Rf3 {[%clk 0:00:36]}  Nxh3+ {[%clk 0:00:50]} 23. Kxg2 {[%clk 0:00:36]}  Rxf3 {[%clk 0:00:49]} 24. Kxf3 {[%clk 0:00:35]}  Rf8+ {[%clk 0:00:50]} 25. Kg2 {[%clk 0:00:35]}  Rxf2+ {[%clk 0:00:32]} 26. Qxf2 {[%clk 0:00:36]}  Nxf2 {[%clk 0:00:32]} 27. Kxf2 {[%clk 0:00:35]}  Qxe4 {[%clk 0:00:32]} 28. Be3 {[%clk 0:00:34]}  d5 {[%clk 0:00:27]} 29. Re1 {[%clk 0:00:29]}  Qf5+ {[%clk 0:00:24]} 30. Kg2 {[%clk 0:00:28]}  Qe4+ {[%clk 0:00:21]} 31. Kf2 {[%clk 0:00:28]}  h6 {[%clk 0:00:16]} 32. Bd2 {[%clk 0:00:22]}  Qf5+ {[%clk 0:00:16]} 33. Kg2 {[%clk 0:00:22]}  e4 {[%clk 0:00:15]} 34. Rf1 {[%clk 0:00:20]}  Qh5 {[%clk 0:00:16]} 35. Rf2 {[%clk 0:00:19]}  c6 {[%clk 0:00:16]} 36. Be3 {[%clk 0:00:19]}  b6 {[%clk 0:00:15]} 37. c4 {[%clk 0:00:16]}  Qd1 {[%clk 0:00:15]} 38. cxd5 {[%clk 0:00:16]}  cxd5 {[%clk 0:00:15]} 39. Rd2 {[%clk 0:00:16]}  Qe1 {[%clk 0:00:16]} 40. Bf4 {[%clk 0:00:15]}  e3 {[%clk 0:00:15]} 41. Rxd5 {[%clk 0:00:15]}  Qf2+ {[%clk 0:00:15]} 42. Kh3 {[%clk 0:00:15]}  Kh7 {[%clk 0:00:11]} 43. Re5 {[%clk 0:00:11]}  e2 {[%clk 0:00:11]} 44. Bd2 {[%clk 0:00:11]}  Qf1+ {[%clk 0:00:11]} 45. Kh2 {[%clk 0:00:11]}  Qf2+ {[%clk 0:00:11]} 46. Kh3 {[%clk 0:00:11]}  Qf1+ {[%clk 0:00:08]} 47. Kh2 {[%clk 0:00:11]}  Qd1 {[%clk 0:00:09]} 48. Bc3 {[%clk 0:00:10]}  Qf1 {[%clk 0:00:08]} 49. Bc4 {[%clk 0:00:09]}  Qf2+ {[%clk 0:00:08]} 50. Kh3 {[%clk 0:00:10]}  Qf1+ {[%clk 0:00:08]} 51. Kh2 {[%clk 0:00:10]}  e1=Q {[%clk 0:00:08]} 52. Bxe1 {[%clk 0:00:06]}  Qxc4 {[%clk 0:00:07]} 53. Re3 {[%clk 0:00:05]}  Qxc2+ {[%clk 0:00:07]} 54. Kh3 {[%clk 0:00:04]}  Qxa2 {[%clk 0:00:08]} 55. Rf3 {[%clk 0:00:04]}  Qe6+ {[%clk 0:00:08]} 56. Kg2 {[%clk 0:00:01]}  Qxe1 {[%clk 0:00:09]} 0-1


[Site "https://www.chess.com"]

[Event "Titled Tuesday Blitz August 08 Early 2023"]
[White "Shvedova, Alexandra"]
[Black "Sychev, Klementy"]
[WhiteFideId "54154782"]
[BlackFideId "4114060"]
[WhiteElo "2549"]
[BlackElo "2778"]
[Result "1/2-1/2"]
[Round "2"]
[TimeControl "180+1"]
[Date "2023.08.08"]
[WhiteClock "0:00:09"]
[BlackClock "0:00:06"]
[Board "75"]

1. e4 {[%clk 0:03:00]}  e5 {[%clk 0:03:00]} 2. Nf3 {[%clk 0:03:01]}  Nc6 {[%clk 0:03:00]} 3. Bc4 {[%clk 0:03:01]}  Nf6 {[%clk 0:03:00]} 4. d3 {[%clk 0:03:01]}  Bc5 {[%clk 0:03:00]} 5. O-O {[%clk 0:03:01]}  O-O {[%clk 0:03:00]} 6. h3 {[%clk 0:03:00]}  d6 {[%clk 0:02:58]} 7. a4 {[%clk 0:03:00]}  a5 {[%clk 0:02:57]} 8. c3 {[%clk 0:03:00]}  h6 {[%clk 0:02:57]} 9. Nbd2 {[%clk 0:02:51]}  Be6 {[%clk 0:02:54]} 10. Re1 {[%clk 0:02:41]}  Ba7 {[%clk 0:02:45]} 11. Bb3 {[%clk 0:02:40]}  Re8 {[%clk 0:02:42]} 12. Nf1 {[%clk 0:02:36]}  d5 {[%clk 0:02:41]} 13. exd5 {[%clk 0:02:21]}  Bxd5 {[%clk 0:02:38]} 14. Bc2 {[%clk 0:02:20]}  Qd7 {[%clk 0:02:31]} 15. Be3 {[%clk 0:02:18]}  Bxe3 {[%clk 0:02:28]} 16. Nxe3 {[%clk 0:02:19]}  Be6 {[%clk 0:02:22]} 17. Qe2 {[%clk 0:02:19]}  Rad8 {[%clk 0:02:20]} 18. Rad1 {[%clk 0:02:18]}  Nd5 {[%clk 0:02:18]} 19. Nxd5 {[%clk 0:02:16]}  Bxd5 {[%clk 0:02:18]} 20. Nd2 {[%clk 0:02:14]}  Qe6 {[%clk 0:01:49]} 21. Nf1 {[%clk 0:01:55]}  Qf6 {[%clk 0:01:42]} 22. Ne3 {[%clk 0:01:49]}  Be6 {[%clk 0:01:41]} 23. Ng4 {[%clk 0:01:48]}  Qg5 {[%clk 0:01:34]} 24. Qe3 {[%clk 0:01:33]}  Bf5 {[%clk 0:01:15]} 25. Nh2 {[%clk 0:01:19]}  Qg6 {[%clk 0:01:13]} 26. Nf3 {[%clk 0:01:12]}  Qf6 {[%clk 0:01:08]} 27. Nd2 {[%clk 0:01:07]}  Kh8 {[%clk 0:00:54]} 28. Ne4 {[%clk 0:01:06]}  Qh4 {[%clk 0:00:54]} 29. Qg3 {[%clk 0:01:00]}  Qxg3 {[%clk 0:00:51]} 30. Nxg3 {[%clk 0:01:01]}  Bg6 {[%clk 0:00:51]} 31. f3 {[%clk 0:00:53]}  f6 {[%clk 0:00:47]} 32. Kf2 {[%clk 0:00:51]}  Rd7 {[%clk 0:00:34]} 33. h4 {[%clk 0:00:48]}  Red8 {[%clk 0:00:34]} 34. Re3 {[%clk 0:00:46]}  Ne7 {[%clk 0:00:30]} 35. h5 {[%clk 0:00:46]}  Bh7 {[%clk 0:00:30]} 36. Rd2 {[%clk 0:00:38]}  Nd5 {[%clk 0:00:30]} 37. Re1 {[%clk 0:00:38]}  Nf4 {[%clk 0:00:29]} 38. Ne4 {[%clk 0:00:24]}  Bxe4 {[%clk 0:00:25]} 39. Rxe4 {[%clk 0:00:22]}  Nxd3+ {[%clk 0:00:19]} 40. Bxd3 {[%clk 0:00:22]}  Rxd3 {[%clk 0:00:19]} 41. Rxd3 {[%clk 0:00:23]}  Rxd3 {[%clk 0:00:19]} 42. Ke2 {[%clk 0:00:23]}  Rd7 {[%clk 0:00:17]} 43. Rc4 {[%clk 0:00:23]}  Kg8 {[%clk 0:00:16]} 44. b4 {[%clk 0:00:20]}  axb4 {[%clk 0:00:14]} 45. cxb4 {[%clk 0:00:21]}  Kf7 {[%clk 0:00:15]} 46. b5 {[%clk 0:00:20]}  Ke6 {[%clk 0:00:13]} 47. Ke3 {[%clk 0:00:20]}  Kd5 {[%clk 0:00:13]} 48. Rc2 {[%clk 0:00:19]}  f5 {[%clk 0:00:11]} 49. Rd2+ {[%clk 0:00:15]}  Ke6 {[%clk 0:00:11]} 50. Rc2 {[%clk 0:00:16]}  Ke7 {[%clk 0:00:11]} 51. a5 {[%clk 0:00:15]}  Kd8 {[%clk 0:00:11]} 52. a6 {[%clk 0:00:14]}  bxa6 {[%clk 0:00:10]} 53. bxa6 {[%clk 0:00:15]}  f4+ {[%clk 0:00:07]} 54. Ke4 {[%clk 0:00:13]}  Rd4+ {[%clk 0:00:07]} 55. Kxe5 {[%clk 0:00:14]}  Ra4 {[%clk 0:00:07]} 56. Rc6 {[%clk 0:00:11]}  Ra5+ {[%clk 0:00:06]} 57. Kxf4 {[%clk 0:00:11]}  Rxh5 {[%clk 0:00:06]} 58. Rg6 {[%clk 0:00:10]}  Ra5 {[%clk 0:00:06]} 59. Ke4 {[%clk 0:00:08]}  Kc8 {[%clk 0:00:03]} 60. f4 {[%clk 0:00:07]}  Kb8 {[%clk 0:00:02]} 61. f5 {[%clk 0:00:08]}  Kc8 {[%clk 0:00:02]} 62. g4 {[%clk 0:00:07]}  Kd8 {[%clk 0:00:02]} 63. Kd4 {[%clk 0:00:06]}  Kc8 {[%clk 0:00:01]} 64. Ke4 {[%clk 0:00:05]}  Kd8 {[%clk 0:00:02]} 65. Rxg7 {[%clk 0:00:05]}  Rxa6 {[%clk 0:00:02]} 66. Rg6 {[%clk 0:00:06]}  Ra4+ {[%clk 0:00:02]} 67. Kd5 {[%clk 0:00:06]}  Kd7 {[%clk 0:00:02]} 68. Rg7+ {[%clk 0:00:04]}  Ke8 {[%clk 0:00:02]} 69. Ke6 {[%clk 0:00:03]}  Ra6+ {[%clk 0:00:02]} 70. Ke5 {[%clk 0:00:04]}  Kf8 {[%clk 0:00:03]} 71. Rxc7 {[%clk 0:00:04]}  Ra4 {[%clk 0:00:03]} 72. Kf6 {[%clk 0:00:04]}  Ra6+ {[%clk 0:00:03]} 73. Ke5 {[%clk 0:00:04]}  Ra4 {[%clk 0:00:03]} 74. Rc6 {[%clk 0:00:04]}  Rxg4 {[%clk 0:00:03]} 75. Rxh6 {[%clk 0:00:05]}  Ra4 {[%clk 0:00:02]} 76. Kf6 {[%clk 0:00:04]}  Ra6+ {[%clk 0:00:02]} 77. Kg5 {[%clk 0:00:05]}  Rxh6 {[%clk 0:00:03]} 78. Kxh6 {[%clk 0:00:06]}  Kf7 {[%clk 0:00:04]} 79. Kg5 {[%clk 0:00:06]}  Kg7 {[%clk 0:00:04]} 80. f6+ {[%clk 0:00:07]}  Kf7 {[%clk 0:00:05]} 81. Kf5 {[%clk 0:00:07]}  Kf8 {[%clk 0:00:05]} 82. Kg6 {[%clk 0:00:08]}  Kg8 {[%clk 0:00:06]} 83. f7+ {[%clk 0:00:09]}  Kf8 {[%clk 0:00:06]} 84. Kf6 {[%clk 0:00:09]} 1/2-1/2


[Site "https://www.chess.com"]

[Event "Titled Tuesday Blitz August 08 Early 2023"]
[White "Mendez Fortes, Eduardo Jesus"]
[Black "Cherniaiev, Tykhon"]
[WhiteFideId "3502376"]
[BlackFideId "14182360"]
[WhiteElo "2547"]
[BlackElo "2773"]
[Result "0-1"]
[Round "2"]
[TimeControl "180+1"]
[Date "2023.08.08"]
[WhiteClock "0:00:06"]
[BlackClock "0:00:04"]
[Board "76"]

1. e4 {[%clk 0:03:00]}  e5 {[%clk 0:02:59]} 2. Nf3 {[%clk 0:02:52]}  Nc6 {[%clk 0:02:57]} 3. Bb5 {[%clk 0:02:52]}  a6 {[%clk 0:02:56]} 4. Ba4 {[%clk 0:02:53]}  Nge7 {[%clk 0:02:56]} 5. c3 {[%clk 0:02:53]}  Ng6 {[%clk 0:02:56]} 6. d4 {[%clk 0:02:52]}  exd4 {[%clk 0:02:55]} 7. cxd4 {[%clk 0:02:51]}  Be7 {[%clk 0:02:50]} 8. O-O {[%clk 0:02:50]}  O-O {[%clk 0:02:49]} 9. Nc3 {[%clk 0:02:49]}  b5 {[%clk 0:02:49]} 10. Bb3 {[%clk 0:02:46]}  d6 {[%clk 0:02:49]} 11. h3 {[%clk 0:02:45]}  Na5 {[%clk 0:02:48]} 12. Bc2 {[%clk 0:02:44]}  c5 {[%clk 0:02:46]} 13. Be3 {[%clk 0:02:38]}  Nc4 {[%clk 0:02:45]} 14. Bc1 {[%clk 0:02:35]}  Bb7 {[%clk 0:02:44]} 15. b3 {[%clk 0:02:22]}  Nb6 {[%clk 0:02:43]} 16. d5 {[%clk 0:02:14]}  Bf6 {[%clk 0:02:43]} 17. Bd2 {[%clk 0:02:05]}  b4 {[%clk 0:02:36]} 18. Ne2 {[%clk 0:02:05]}  Bxa1 {[%clk 0:02:30]} 19. Qxa1 {[%clk 0:02:05]}  Re8 {[%clk 0:02:24]} 20. Ng3 {[%clk 0:02:01]}  f6 {[%clk 0:02:21]} 21. Nh2 {[%clk 0:01:50]}  a5 {[%clk 0:02:00]} 22. Ng4 {[%clk 0:01:27]}  a4 {[%clk 0:01:57]} 23. Qb2 {[%clk 0:01:24]}  axb3 {[%clk 0:01:54]} 24. axb3 {[%clk 0:01:23]}  Nd7 {[%clk 0:01:46]} 25. Nf5 {[%clk 0:01:07]}  Nde5 {[%clk 0:01:45]} 26. Nge3 {[%clk 0:01:05]}  Ba6 {[%clk 0:01:32]} 27. Re1 {[%clk 0:01:05]}  Nf4 {[%clk 0:01:30]} 28. Kh2 {[%clk 0:00:55]}  Ned3 {[%clk 0:01:28]} 29. Qb1 {[%clk 0:00:47]}  Nxe1 {[%clk 0:01:26]} 30. Bxe1 {[%clk 0:00:47]}  Ng6 {[%clk 0:01:18]} 31. f3 {[%clk 0:00:40]}  Ne5 {[%clk 0:01:08]} 32. Bg3 {[%clk 0:00:30]}  Qd7 {[%clk 0:01:03]} 33. Qd1 {[%clk 0:00:23]}  g6 {[%clk 0:00:57]} 34. Nh6+ {[%clk 0:00:23]}  Kg7 {[%clk 0:00:58]} 35. Nhg4 {[%clk 0:00:23]}  h5 {[%clk 0:00:47]} 36. Nxe5 {[%clk 0:00:22]}  Rxe5 {[%clk 0:00:26]} 37. f4 {[%clk 0:00:20]}  Ree8 {[%clk 0:00:25]} 38. f5 {[%clk 0:00:20]}  h4 {[%clk 0:00:13]} 39. Bxh4 {[%clk 0:00:19]}  g5 {[%clk 0:00:13]} 40. Bg3 {[%clk 0:00:19]}  Rh8 {[%clk 0:00:12]} 41. Qg4 {[%clk 0:00:19]}  Qe7 {[%clk 0:00:10]} 42. Kg1 {[%clk 0:00:18]}  Bb5 {[%clk 0:00:09]} 43. h4 {[%clk 0:00:18]}  Ra1+ {[%clk 0:00:09]} 44. Kf2 {[%clk 0:00:18]}  Kf7 {[%clk 0:00:03]} 45. hxg5 {[%clk 0:00:18]}  fxg5 {[%clk 0:00:04]} 46. e5 {[%clk 0:00:18]}  dxe5 {[%clk 0:00:03]} 47. Be4 {[%clk 0:00:14]}  Qa7 {[%clk 0:00:02]} 48. d6 {[%clk 0:00:12]}  Qa2+ {[%clk 0:00:02]} 49. Nc2 {[%clk 0:00:12]}  Rf1+ {[%clk 0:00:02]} 50. Ke3 {[%clk 0:00:12]}  Qb2 {[%clk 0:00:01]} 51. Bd5+ {[%clk 0:00:12]}  Kf8 {[%clk 0:00:02]} 52. Bc4 {[%clk 0:00:07]}  Qc3+ {[%clk 0:00:02]} 53. Ke2 {[%clk 0:00:07]}  Bxc4+ {[%clk 0:00:01]} 54. Qxc4 {[%clk 0:00:07]}  Qxc4+ {[%clk 0:00:02]} 55. bxc4 {[%clk 0:00:08]}  Rc1 {[%clk 0:00:02]} 56. Ne3 {[%clk 0:00:08]}  Kf7 {[%clk 0:00:02]} 57. Bxe5 {[%clk 0:00:09]}  Re8 {[%clk 0:00:03]} 58. Bg3 {[%clk 0:00:09]}  Rc3 {[%clk 0:00:03]} 59. Bf2 {[%clk 0:00:09]}  b3 {[%clk 0:00:03]} 60. Kd2 {[%clk 0:00:09]}  Rcxe3 {[%clk 0:00:04]} 61. Bxe3 {[%clk 0:00:09]}  b2 {[%clk 0:00:04]} 62. d7 {[%clk 0:00:06]}  b1=Q {[%clk 0:00:04]} 0-1


[Site "https://www.chess.com"]